[Event "Lueneburg Open-B 2019"]
[Site "Lueneburg"]
[Date "2019.08.03"]
[Round "1.9"]
[White "Groth, Matthias"]
[Black "Mi, Gufeng"]
[Result "1-0"]
[ECO "E61"]
[WhiteElo "1737"]
[BlackElo "1564"]
[Annotator "NA"]
[PlyCount "59"]
[EventDate "2019.08.03"]
[EventType "swiss"]
[EventCountry "GER"]
[SourceTitle "playchess.com"]
[Source "ChessBase"]
[SourceQuality "1"]
[TimeControl "40/5400+30:1800+30"]

1. d4 {[%emt 0:00:00]} g6 {[%emt 0:01:39]} 2. c4 {[%emt 0:00:00]} Bg7 {[%emt 0:04:16]} 3. Nc3 {[%emt 0:00:03]} d6 {[%emt 0:00:46]} 4. Nf3 {[%emt 0:00:45]} Nd7 {[%emt 0:00:39]} 5. Bf4 {[%emt 0:00:38]} Ngf6 {[%emt 0:01:34]} 6. e4 {[%emt 0:01:00]} O-O {[%emt 0:02:55]} 7. Bd3 {[%emt 0:00:58]} c6 {[%emt 0:01:46]} 8. Qd2 {[%emt 0:01:34]} a6 {[%emt 0:02:09]} 9. Bh6 {[%emt 0:01:22]} b5 {[%emt 0:01:34]} 10. h4 {[%emt 0:07:40]} Nb6 {[%emt 0:04:39]} 11. h5 {[%emt 0:09:25]} Ng4 {[%emt 0:13:13]} 12. hxg6 {[%emt 0:07:37]} hxg6 {[%emt 0:05:48]} 13. O-O-O {[%emt 0:12:34]} Nxc4 {[%emt 0:04:15]} 14. Bxc4 {[%emt 0:01:06]} bxc4 {[%emt 0:00:15]} 15. Rh4 {[%emt 0:02:10]} f6 {[%emt 0:10:35]} 16. Bxg7 {[%emt 0:11:26]} Kxg7 {[%emt 0:03:47]} 17. Rdh1 {[%emt 0:06:19]} Kf7 {[%emt 0:02:00]} 18. Ne1 {[%emt 0:03:13]} f5 {[%emt 0:04:44]} 19. Rh7+ {[%emt 0:09:15]} Ke8 {[%emt 0:01:59]} 20. Qg5 {[%emt 0:03:15]} Kd7 {[%emt 0:05:02]} 21. Qxg6 {[%emt 0:03:12]} Kc7 {[%emt 0:02:11]} 22. Rg7 {[%emt 0:03:44]} Nxf2 {[%emt 0:19:12]} 23. Rhh7 {[%emt 0:00:30]} fxe4 {[%emt 0:02:40]} 24. Rxe7+ {[%emt 0:00:30]} Kb8 {[%emt 0:00:48]} 25. Qg7 {[%emt 0:02:48]} Qb6 {[%emt 0:02:11]} 26. Qxf8 {[%emt 0:00:37]} Nd3+ {[%emt 0:01:43]} 27. Nxd3 {[%emt 0:00:25]} exd3 {[%emt 0:00:27]} 28. Qxc8+ {[%emt 0:01:07]} Kxc8 {[%emt 0:00:16]} 29. Re8+ {[%emt 0:00:08]} Qd8 {[%emt 0:00:47]} 30. Rxd8+ {[%emt 0:00:05]} 1-0

[Event "Lueneburg Open-B 2019"]
[Site "Lueneburg"]
[Date "2019.08.03"]
[Round "1.10"]
[White "Hotz, Herbert"]
[Black "Wiese, Uwe"]
[Result "0-1"]
[ECO "A10"]
[WhiteElo "1547"]
[BlackElo "1737"]
[Annotator "NA"]
[PlyCount "74"]
[EventDate "2019.08.03"]
[EventType "swiss"]
[EventCountry "GER"]
[SourceTitle "playchess.com"]
[Source "ChessBase"]
[SourceQuality "1"]
[TimeControl "40/5400+30:1800+30"]

1. c4 {[%emt 0:00:00]} f5 {[%emt 0:00:00]} 2. g3 {[%emt 0:01:16]} e5 {[%emt 0:01:42]} 3. Bg2 {[%emt 0:02:38]} Bc5 {[%emt 0:01:16]} 4. d3 {[%emt 0:02:11]} Nf6 {[%emt 0:00:34]} 5. h3 {[%emt 0:04:13]} O-O {[%emt 0:00:45]} 6. e3 {[%emt 0:01:32]} c6 {[%emt 0:05:15]} 7. Ne2 {[%emt 0:01:50]} d5 {[%emt 0:01:03]} 8. O-O {[%emt 0:05:27]} d4 {[%emt 0:10:17]} 9. b3 {[%emt 0:05:05]} Qe7 {[%emt 0:03:53]} 10. exd4 {[%emt 0:12:53]} exd4 {[%emt 0:07:49]} 11. Bb2 {[%emt 0:04:00]} Qd6 {[%emt 0:03:35]} 12. Nd2 {[%emt 0:02:22]} Be6 {[%emt 0:04:11]} 13. Nf3 {[%emt 0:01:23]} Rd8 {[%emt 0:00:51]} 14. Nf4 {[%emt 0:05:37]} Bf7 {[%emt 0:03:02]} 15. Ng5 {[%emt 0:05:14]} Nbd7 {[%emt 0:07:03]} 16. Bc1 {[%emt 0:15:04]} Re8 {[%emt 0:02:22]} 17. Bd2 {[%emt 0:03:19]} Re7 {[%emt 0:03:03]} 18. h4 {[%emt 0:06:15]} Ne5 {[%emt 0:06:27]} 19. Re1 {[%emt 0:07:00]} Rae8 {[%emt 0:00:41]} 20. Nf3 {[%emt 0:01:03]} Nxf3+ {[%emt 0:16:52]} 21. Bxf3 {[%emt 0:00:38]} Rxe1+ {[%emt 0:00:40]} 22. Bxe1 {[%emt 0:00:10]} Qe7 {[%emt 0:01:12]} 23. Kg2 {[%emt 0:01:27]} Nd7 {[%emt 0:01:08]} 24. Bd2 {[%emt 0:02:08]} Ne5 {[%emt 0:02:30]} 25. Qf1 {[%emt 0:01:14]} Qf6 {[%emt 0:04:50]} 26. Re1 {[%emt 0:00:39]} Bd6 {[%emt 0:00:34]} 27. Bd1 {[%emt 0:02:03]} g6 {[%emt 0:02:09]} 28. Nh3 {[%emt 0:00:57]} Kg7 {[%emt 0:01:34]} 29. Bf4 {[%emt 0:01:27]} Nxd3 {[%emt 0:01:50]} 30. Rxe8 {[%emt 0:00:50]} Nxf4+ {[%emt 0:00:39]} 31. Nxf4 {[%emt 0:00:38]} Bxe8 {[%emt 0:00:23]} 32. Nd3 {[%emt 0:01:49]} f4 {[%emt 0:01:18]} 33. Qe2 {[%emt 0:01:49]} Bd7 {[%emt 0:00:30]} 34. Qf3 {[%emt 0:00:48]} Qf5 {[%emt 0:00:51]} 35. gxf4 {[%emt 0:01:28]} c5 {[%emt 0:00:33]} 36. Qg3 {[%emt 0:00:26]} Bc6+ {[%emt 0:00:40]} 37. Bf3 {[%emt 0:00:26]} Qxd3 {[%emt 0:00:24]} 0-1

[Event "Lueneburg Open-B 2019"]
[Site "Lueneburg"]
[Date "2019.08.03"]
[Round "1.11"]
[White "Thomas, Andreas"]
[Black "Martinez Martin, David"]
[Result "1-0"]
[ECO "C44"]
[WhiteElo "1726"]
[BlackElo "2388"]
[Annotator "NA"]
[PlyCount "101"]
[EventDate "2019.08.03"]
[EventType "swiss"]
[EventCountry "GER"]
[SourceTitle "playchess.com"]
[Source "ChessBase"]
[SourceQuality "1"]
[TimeControl "40/5400+30:1800+30"]

1. e4 {[%emt 0:00:00]} e5 {[%emt 0:00:00]} 2. Nf3 {[%emt 0:00:08]} Nc6 {[%emt 0:00:00]} 3. d4 {[%emt 0:01:05]} exd4 {[%emt 0:00:36]} 4. c3 {[%emt 0:00:59]} dxc3 {[%emt 0:02:10]} 5. Nxc3 {[%emt 0:00:04]} h6 {[%emt 0:01:32]} 6. Bc4 {[%emt 0:02:50]} Bb4 {[%emt 0:01:51]} 7. O-O {[%emt 0:02:59]} Bxc3 {[%emt 1:27:21]} 8. bxc3 {[%emt 0:00:27]} Nge7 {[%emt 0:00:00]} 9. Ba3 {[%emt 0:04:32]} O-O {[%emt 0:00:00]} 10. e5 {[%emt 0:01:17]} b6 {[%emt 0:00:00]} 11. Re1 {[%emt 0:05:01]} Bb7 {[%emt 0:00:00]} 12. Bb3 {[%emt 0:05:30]} Na5 {[%emt 0:00:00]} 13. Bc2 {[%emt 0:00:31]} c5 {[%emt 0:00:00]} 14. Qd3 {[%emt 0:02:36]} Ng6 {[%emt 0:00:00]} 15. Rad1 {[%emt 0:05:25]} Bc6 {[%emt 0:00:00]} 16. h4 {[%emt 0:04:34]} Bxf3 {[%emt 0:00:00]} 17. Qxf3 {[%emt 0:00:01]} Qxh4 {[%emt 0:00:00]} 18. Rxd7 {[%emt 0:04:53]} Nc4 {[%emt 0:00:00]} 19. Rxf7 {[%emt 0:30:42]} Ncxe5 {[%emt 0:00:00]} 20. Rxf8+ {[%emt 0:04:56]} Rxf8 {[%emt 0:00:00]} 21. Qd5+ {[%emt 0:01:07]} Kh8 {[%emt 0:00:00]} 22. g3 {[%emt 0:02:55]} Qf6 {[%emt 0:00:00]} 23. f4 {[%emt 0:09:01]} Ng4 {[%emt 0:00:00]} 24. Qd3 {[%emt 0:03:33]} Kh7 {[%emt 0:00:00]} 25. Bb2 {[%emt 0:02:57]} Rd8 {[%emt 0:00:00]} 26. Qe2 {[%emt 0:01:38]} h5 {[%emt 0:00:00]} 27. c4 {[%emt 0:00:16]} Rd4 {[%emt 0:00:00]} 28. Bxg6+ {[%emt 0:01:47]} Kxg6 {[%emt 0:00:00]} 29. Bxd4 {[%emt 0:00:04]} Qxd4+ {[%emt 0:00:00]} 30. Kf1 {[%emt 0:00:13]} Nf6 {[%emt 0:00:00]} 31. Rd1 {[%emt 0:01:12]} Qc3 {[%emt 0:00:00]} 32. Qd3+ {[%emt 0:01:17]} Qxd3+ {[%emt 0:00:00]} 33. Rxd3 {[%emt 0:00:00]} Kf5 {[%emt 0:00:00]} 34. Kf2 {[%emt 0:01:02]} Ke4 {[%emt 0:00:00]} 35. Ke2 {[%emt 0:00:47]} Kf5 {[%emt 0:00:00]} 36. Kf3 {[%emt 0:00:25]} Ng4 {[%emt 0:00:00]} 37. Rd5+ {[%emt 0:00:15]} Kg6 {[%emt 0:00:00]} 38. Rg5+ {[%emt 0:00:52]} Kh6 {[%emt 0:00:00]} 39. a4 {[%emt 0:00:50]} Nf6 {[%emt 0:00:00]} 40. a5 {[%emt 0:00:48]} Ne8 {[%emt 0:00:00]} 41. axb6 {[%emt 0:30:23]} axb6 {[%emt 0:26:21]} 42. Re5 {[%emt 0:00:00]} Nc7 {[%emt 0:00:00]} 43. Re7 {[%emt 0:00:00]} Na6 {[%emt 0:00:00]} 44. Re6+ {[%emt 0:00:00]} g6 {[%emt 0:00:00]} 45. Rxb6 {[%emt 0:00:00]} Nb4 {[%emt 0:00:00]} 46. Rb5 {[%emt 0:00:00]} Nc2 {[%emt 0:00:00]} 47. Rxc5 {[%emt 0:00:00]} Nd4+ {[%emt 0:00:00]} 48. Ke4 {[%emt 0:00:00]} Nf5 {[%emt 0:00:00]} 49. Rxf5 {[%emt 0:00:00]} gxf5+ {[%emt 0:00:00]} 50. Kxf5 {[%emt 0:05:08]} Kg7 {[%emt 0:00:00]} 51. Kg5 {[%emt 0:00:30]} 1-0

[Event "Lueneburg Open-B 2019"]
[Site "Lueneburg"]
[Date "2019.08.03"]
[Round "1.12"]
[White "Schulze, Tim"]
[Black "Gerdau, Niklas"]
[Result "1/2-1/2"]
[ECO "A30"]
[WhiteElo "1481"]
[BlackElo "1704"]
[Annotator "NA"]
[PlyCount "85"]
[EventDate "2019.08.03"]
[EventType "swiss"]
[EventCountry "GER"]
[SourceTitle "playchess.com"]
[Source "ChessBase"]
[SourceQuality "1"]
[TimeControl "40/5400+30:1800+30"]

1. d4 {[%emt 0:00:00]} d5 {[%emt 0:00:00]} 2. Nf3 {[%emt 0:00:00]} Nf6 {[%emt 0:00:00]} 3. g3 {[%emt 0:00:00]} Bf5 {[%emt 0:00:25]} 4. Bg2 {[%emt 0:00:00]} e6 {[%emt 0:00:15]} 5. c4 {[%emt 0:00:00]} c5 {[%emt 0:00:45]} 6. O-O {[%emt 0:00:28]} Nc6 {[%emt 0:00:38]} 7. cxd5 {[%emt 0:05:49]} Nxd5 {[%emt 0:01:31]} 8. Re1 {[%emt 0:02:51]} Ndb4 {[%emt 0:02:54]} 9. e4 {[%emt 0:07:23]} Bg4 {[%emt 0:00:07]} 10. a3 {[%emt 0:04:53]} Na6 {[%emt 0:03:44]} 11. d5 {[%emt 0:03:37]} Nd4 {[%emt 0:02:35]} 12. dxe6 {[%emt 0:08:32]} Bxe6 {[%emt 0:01:19]} 13. Nxd4 {[%emt 0:04:07]} cxd4 {[%emt 0:01:42]} 14. b4 {[%emt 0:02:54]} b5 {[%emt 0:06:53]} 15. Bb2 {[%emt 0:01:57]} Qd7 {[%emt 0:04:04]} 16. Qxd4 {[%emt 0:01:16]} Rd8 {[%emt 0:03:45]} 17. Qxd7+ {[%emt 0:01:53]} Rxd7 {[%emt 0:00:13]} 18. Nc3 {[%emt 0:04:33]} Nc7 {[%emt 0:07:20]} 19. Rad1 {[%emt 0:01:26]} Be7 {[%emt 0:06:39]} 20. Rxd7 {[%emt 0:03:57]} Bxd7 {[%emt 0:00:31]} 21. Rd1 {[%emt 0:00:13]} Bg4 {[%emt 0:08:00]} 22. Rd2 {[%emt 0:03:31]} O-O {[%emt 0:06:41]} 23. h3 {[%emt 0:02:11]} Bc8 {[%emt 0:04:07]} 24. Nd5 {[%emt 0:05:36]} Bd8 {[%emt 0:01:24]} 25. Rc2 {[%emt 0:05:49]} Nxd5 {[%emt 0:00:28]} 26. Rxc8 {[%emt 0:00:13]} Nb6 {[%emt 0:01:25]} 27. Rc2 {[%emt 0:01:40]} Nc4 {[%emt 0:01:24]} 28. Bc1 {[%emt 0:04:07]} Bb6 {[%emt 0:03:16]} 29. a4 {[%emt 0:02:42]} a6 {[%emt 0:01:44]} 30. axb5 {[%emt 0:01:32]} axb5 {[%emt 0:00:07]} 31. Bf1 {[%emt 0:01:58]} f5 {[%emt 0:09:43]} 32. Bxc4+ {[%emt 0:02:41]} bxc4 {[%emt 0:00:09]} 33. Rxc4 {[%emt 0:03:00]} fxe4 {[%emt 0:00:13]} 34. Be3 {[%emt 0:00:10]} Bxe3 {[%emt 0:01:00]} 35. fxe3 {[%emt 0:00:06]} Rf3 {[%emt 0:00:10]} 36. Rxe4 {[%emt 0:03:24]} Rxg3+ {[%emt 0:01:18]} 37. Kh2 {[%emt 0:00:19]} Rg5 {[%emt 0:00:44]} 38. Rc4 {[%emt 0:07:32]} Kf7 {[%emt 0:01:15]} 39. Rc5 {[%emt 0:00:30]} Rg6 {[%emt 0:00:11]} 40. e4 {[%emt 0:00:53]} Rb6 {[%emt 0:01:58]} 41. b5 {[%emt 0:32:36]} Re6 {[%emt 0:30:14]} 42. Rc7+ {[%emt 0:01:44]} Kf8 {[%emt 0:00:52]} 43. Rc8+ {[%emt 0:00:31]} 1/2-1/2

[Event "Lueneburg Open-B 2019"]
[Site "Lueneburg"]
[Date "2019.08.03"]
[Round "1.13"]
[White "Cordsen, Heinrich"]
[Black "Hinke, Gerhard"]
[Result "0-1"]
[ECO "B28"]
[WhiteElo "1685"]
[BlackElo "1476"]
[Annotator "NA"]
[PlyCount "67"]
[EventDate "2019.08.03"]
[EventType "swiss"]
[EventCountry "GER"]
[SourceTitle "playchess.com"]
[Source "ChessBase"]
[SourceQuality "1"]
[TimeControl "40/5400+30:1800+30"]

1. e4 {[%emt 0:00:00]} e6 {[%emt 0:00:00]} 2. d4 {[%emt 0:00:00]} d5 {[%emt 0:00:00]} 3. e5 {[%emt 0:00:00]} a6 {[%emt 0:00:33]} 4. Nf3 {[%emt 0:01:47]} c5 {[%emt 0:00:24]} 5. c3 {[%emt 0:00:37]} Nc6 {[%emt 0:00:29]} 6. a3 {[%emt 0:05:58]} Qb6 {[%emt 0:04:21]} 7. Bd3 {[%emt 0:04:33]} cxd4 {[%emt 0:02:07]} 8. cxd4 {[%emt 0:01:08]} Bd7 {[%emt 0:00:36]} 9. Bc2 {[%emt 0:05:44]} Nge7 {[%emt 0:03:00]} 10. Nc3 {[%emt 0:03:54]} Rc8 {[%emt 0:08:06]} 11. O-O {[%emt 0:02:55]} Na5 {[%emt 0:07:40]} 12. Na4 {[%emt 0:22:09]} Qc6 {[%emt 0:08:41]} 13. Nc5 {[%emt 0:07:05]} b6 {[%emt 0:06:24]} 14. Nxd7 {[%emt 0:09:16]} Qxd7 {[%emt 0:00:37]} 15. Bd2 {[%emt 0:05:01]} Nac6 {[%emt 0:04:53]} 16. b4 {[%emt 0:05:08]} b5 {[%emt 0:02:15]} 17. Rc1 {[%emt 0:02:33]} Qa7 {[%emt 0:04:07]} 18. Be3 {[%emt 0:01:42]} g6 {[%emt 0:03:57]} 19. h4 {[%emt 0:02:23]} Nf5 {[%emt 0:05:44]} 20. g4 {[%emt 0:01:33]} Nh6 {[%emt 0:04:10]} 21. Nh2 {[%emt 0:02:42]} Bg7 {[%emt 0:04:51]} 22. Qd2 {[%emt 0:00:42]} Ng8 {[%emt 0:01:21]} 23. Bb1 {[%emt 0:02:38]} f6 {[%emt 0:04:56]} 24. f4 {[%emt 0:01:52]} Nge7 {[%emt 0:05:14]} 25. Rc3 {[%emt 0:03:41]} O-O {[%emt 0:01:39]} 26. Rfc1 {[%emt 0:03:38]} Qd7 {[%emt 0:02:44]} 27. h5 {[%emt 0:01:47]} a5 {[%emt 0:00:46]} 28. bxa5 {[%emt 0:01:35]} Qa7 {[%emt 0:04:39]} 29. hxg6 {[%emt 0:00:54]} hxg6 {[%emt 0:00:25]} 30. Bxg6 {[%emt 0:00:38]} Nxa5 {[%emt 0:01:04]} 31. Rxc8 {[%emt 0:00:48]} Rxc8 {[%emt 0:01:15]} 32. Rxc8+ {[%emt 0:00:17]} Nxc8 {[%emt 0:09:02]} 33. Qc2 {[%emt 0:00:43]} Nc4 {[%emt 0:00:00]} 34. Qc3 {[%emt 0:00:00]} 0-1

[Event "Lueneburg Open-B 2019"]
[Site "Lueneburg"]
[Date "2019.08.03"]
[Round "1.14"]
[White "Rothenberg, Anke"]
[Black "Suliga, Eckhard"]
[Result "0-1"]
[ECO "A46"]
[WhiteElo "1467"]
[BlackElo "1682"]
[Annotator "NA"]
[PlyCount "66"]
[EventDate "2019.08.03"]
[EventType "swiss"]
[EventCountry "GER"]
[SourceTitle "playchess.com"]
[Source "ChessBase"]
[SourceQuality "1"]
[TimeControl "40/5400+30:1800+30"]

1. d4 {[%emt 0:00:00]} Nf6 {[%emt 0:00:00]} 2. Bg5 {[%emt 1:31:00]} e6 {[%emt 1:31:00]} 3. e4 {[%emt 0:00:00]} h6 {[%emt 0:00:00]} 4. Bxf6 {[%emt 0:00:00]} Qxf6 {[%emt 0:00:00]} 5. Nf3 {[%emt 0:00:00]} d5 {[%emt 0:00:00]} 6. e5 {[%emt 0:00:00]} Qf4 {[%emt 0:00:00]} 7. Nbd2 {[%emt 0:00:00]} c5 {[%emt 0:00:00]} 8. Bd3 {[%emt 0:00:00]} h5 {[%emt 0:00:00]} 9. c3 {[%emt 0:00:00]} Nc6 {[%emt 0:00:00]} 10. Bb5 {[%emt 0:00:00]} Bd7 {[%emt 0:00:00]} 11. Qa4 {[%emt 0:00:00]} a6 {[%emt 0:00:00]} 12. dxc5 {[%emt 0:00:00]} Qxa4 {[%emt 0:00:00]} 13. Bxa4 {[%emt 0:00:00]} Bxc5 {[%emt 0:00:00]} 14. Bc2 {[%emt 0:00:00]} d4 {[%emt 0:00:00]} 15. Nb3 {[%emt 0:00:00]} Bb6 {[%emt 0:00:00]} 16. Nbxd4 {[%emt 0:00:00]} O-O {[%emt 0:00:00]} 17. O-O-O {[%emt 0:00:00]} Rfd8 {[%emt 0:00:00]} 18. Nxc6 {[%emt 0:00:00]} Bxc6 {[%emt 0:00:00]} 19. Rxd8+ {[%emt 0:00:00]} Rxd8 {[%emt 0:00:00]} 20. Rf1 {[%emt 0:00:00]} Bb5 {[%emt 0:00:00]} 21. Rd1 {[%emt 0:00:00]} Rxd1+ {[%emt 0:00:00]} 22. Kxd1 {[%emt 0:00:00]} Bxf2 {[%emt 0:00:00]} 23. Be4 {[%emt 0:00:00]} b6 {[%emt 0:00:00]} 24. Nd4 {[%emt 0:00:00]} Bf1 {[%emt 0:00:00]} 25. Kc2 {[%emt 0:00:00]} Kf8 {[%emt 0:00:00]} 26. Bd3 {[%emt 0:00:00]} Bxg2 {[%emt 0:00:00]} 27. Bxa6 {[%emt 0:00:00]} Bg1 {[%emt 0:00:00]} 28. b4 {[%emt 0:00:00]} Bxh2 {[%emt 0:00:00]} 29. a4 {[%emt 0:00:00]} Bxe5 {[%emt 0:00:00]} 30. a5 {[%emt 0:00:00]} bxa5 {[%emt 0:00:00]} 31. bxa5 {[%emt 0:00:00]} h4 {[%emt 0:00:00]} 32. Bb5 {[%emt 0:00:20]} Bxd4 {[%emt 0:00:00]} 33. cxd4 {[%emt 0:00:48]} h3 {[%emt 0:00:00]} 0-1

[Event "Lueneburg Open-B 2019"]
[Site "Lueneburg"]
[Date "2019.08.03"]
[Round "1.16"]
[White "Goldmann, David"]
[Black "Schencke, Guenther"]
[Result "1-0"]
[ECO "C01"]
[WhiteElo "1403"]
[BlackElo "1668"]
[Annotator "NA"]
[PlyCount "81"]
[EventDate "2019.08.03"]
[EventType "swiss"]
[EventCountry "GER"]
[SourceTitle "playchess.com"]
[Source "ChessBase"]
[SourceQuality "1"]
[TimeControl "40/5400+30:1800+30"]

1. e4 {[%emt 0:00:00]} e6 {[%emt 0:00:00]} 2. d4 {[%emt 0:00:02]} d5 {[%emt 0:00:00]} 3. exd5 {[%emt 0:00:54]} exd5 {[%emt 1:31:30]} 4. c4 {[%emt 0:00:43]} Bb4+ {[%emt 0:00:00]} 5. Bd2 {[%emt 0:01:45]} Qe7+ {[%emt 0:00:00]} 6. Qe2 {[%emt 0:00:19]} Nc6 {[%emt 0:00:00]} 7. Nf3 {[%emt 0:01:21]} Bg4 {[%emt 0:00:00]} 8. cxd5 {[%emt 0:00:47]} Bxf3 {[%emt 0:00:00]} 9. Qxe7+ {[%emt 1:28:39]} Ngxe7 {[%emt 0:00:00]} 10. dxc6 {[%emt 0:00:00]} Bxd2+ {[%emt 0:00:00]} 11. Nxd2 {[%emt 0:00:00]} Bxc6 {[%emt 0:00:00]} 12. O-O-O {[%emt 0:00:00]} O-O-O {[%emt 0:00:00]} 13. Nb3 {[%emt 0:00:00]} Bd5 {[%emt 0:00:00]} 14. Na1 {[%emt 0:00:00]} g6 {[%emt 0:00:00]} 15. b3 {[%emt 0:00:00]} Nc6 {[%emt 0:00:00]} 16. Nc2 {[%emt 0:00:00]} Be4 {[%emt 0:00:00]} 17. Ne3 {[%emt 0:00:00]} Rxd4 {[%emt 0:00:00]} 18. Rxd4 {[%emt 0:00:00]} Nxd4 {[%emt 0:00:00]} 19. f3 {[%emt 0:00:00]} Bc6 {[%emt 0:00:00]} 20. Bc4 {[%emt 0:00:00]} Re8 {[%emt 0:00:00]} 21. Ng4 {[%emt 0:00:00]} f5 {[%emt 0:00:00]} 22. Nf6 {[%emt 0:00:00]} Re7 {[%emt 0:00:00]} 23. a4 {[%emt 0:00:00]} b5 {[%emt 0:00:00]} 24. axb5 {[%emt 0:00:00]} Bxb5 {[%emt 0:00:00]} 25. Kb2 {[%emt 0:00:00]} Bxc4 {[%emt 0:00:00]} 26. bxc4 {[%emt 0:00:00]} Rf7 {[%emt 0:00:00]} 27. Nd5 {[%emt 0:00:00]} c6 {[%emt 0:00:00]} 28. Nb4 {[%emt 0:00:00]} Rb7 {[%emt 0:00:00]} 29. Ka3 {[%emt 0:00:00]} a5 {[%emt 0:00:00]} 30. Na6 {[%emt 0:00:00]} Rb6 {[%emt 0:00:00]} 31. Nc5 {[%emt 0:00:00]} Rb4 {[%emt 0:00:00]} 32. Rc1 {[%emt 0:00:00]} Kb8 {[%emt 0:00:00]} 33. Na6+ {[%emt 0:00:00]} Kb7 {[%emt 0:00:00]} 34. Nxb4 {[%emt 0:00:00]} axb4+ {[%emt 0:00:00]} 35. Kxb4 {[%emt 0:00:00]} Kb6 {[%emt 0:00:00]} 36. c5+ {[%emt 0:00:00]} Kc7 {[%emt 0:00:00]} 37. Kc4 {[%emt 0:00:00]} Ne6 {[%emt 0:02:04]} 38. Re1 {[%emt 0:00:00]} Kd7 {[%emt 0:00:07]} 39. Rd1+ {[%emt 0:00:00]} Kc7 {[%emt 0:00:19]} 40. Ra1 {[%emt 0:00:00]} Kb7 {[%emt 0:00:04]} 41. Re1 {[%emt 0:00:00]} 1-0

[Event "Lueneburg Open-B 2019"]
[Site "Lueneburg"]
[Date "2019.08.03"]
[Round "1.17"]
[White "Ramme, Georg"]
[Black "Rennkamp, David"]
[Result "1/2-1/2"]
[ECO "D07"]
[WhiteElo "1660"]
[BlackElo "1355"]
[Annotator "NA"]
[PlyCount "55"]
[EventDate "2019.08.03"]
[EventType "swiss"]
[EventCountry "GER"]
[SourceTitle "playchess.com"]
[Source "ChessBase"]
[SourceQuality "1"]
[TimeControl "40/5400+30:1800+30"]

1. Nf3 {[%emt 0:00:00]} Nc6 {[%emt 0:00:00]} 2. d4 {[%emt 0:00:00]} d5 {[%emt 0:00:00]} 3. c4 {[%emt 0:01:05]} e6 {[%emt 0:00:18]} 4. Nc3 {[%emt 0:00:30]} Bb4 {[%emt 0:00:48]} 5. a3 {[%emt 0:00:34]} Bxc3+ {[%emt 0:00:19]} 6. bxc3 {[%emt 0:00:07]} Nge7 {[%emt 0:00:48]} 7. Bf4 {[%emt 0:01:53]} O-O {[%emt 0:01:08]} 8. e3 {[%emt 0:02:36]} a6 {[%emt 0:02:05]} 9. Qc2 {[%emt 0:04:10]} dxc4 {[%emt 0:05:29]} 10. Bxc4 {[%emt 0:00:47]} Nd5 {[%emt 0:00:57]} 11. Bg3 {[%emt 0:01:38]} Nce7 {[%emt 0:04:31]} 12. e4 {[%emt 0:10:29]} Nb6 {[%emt 0:04:18]} 13. Bd3 {[%emt 0:03:33]} f5 {[%emt 0:00:38]} 14. Bh4 {[%emt 0:08:26]} g6 {[%emt 0:04:39]} 15. Bg5 {[%emt 0:05:23]} Bd7 {[%emt 0:04:27]} 16. a4 {[%emt 0:08:35]} a5 {[%emt 0:01:10]} 17. Bh6 {[%emt 0:03:29]} Re8 {[%emt 0:03:48]} 18. Ne5 {[%emt 0:06:32]} Nc6 {[%emt 0:05:11]} 19. Nf3 {[%emt 0:02:57]} Ne7 {[%emt 0:01:37]} 20. h4 {[%emt 0:04:43]} Bc6 {[%emt 0:05:24]} 21. Qb3 {[%emt 0:04:17]} Nec8 {[%emt 0:02:36]} 22. Ng5 {[%emt 0:04:06]} fxe4 {[%emt 0:03:31]} 23. Nxe4 {[%emt 0:05:33]} Bxe4 {[%emt 0:01:54]} 24. Bxe4 {[%emt 0:00:15]} Nd6 {[%emt 0:01:09]} 25. Bd3 {[%emt 0:02:46]} Qf6 {[%emt 0:02:20]} 26. Bg5 {[%emt 0:00:38]} Qf7 {[%emt 0:00:52]} 27. Rh3 {[%emt 0:04:44]} e5 {[%emt 0:01:39]} 28. Qxf7+ {[%emt 0:00:47]} 1/2-1/2

[Event "Lueneburg Open-B 2019"]
[Site "Lueneburg"]
[Date "2019.08.03"]
[Round "1.18"]
[White "Buchinger, Alexis"]
[Black "Ische, Helmut"]
[Result "0-1"]
[ECO "B07"]
[WhiteElo "1346"]
[BlackElo "1662"]
[Annotator "NA"]
[PlyCount "82"]
[EventDate "2019.08.03"]
[EventType "swiss"]
[EventCountry "GER"]
[SourceTitle "playchess.com"]
[Source "ChessBase"]
[SourceQuality "1"]
[TimeControl "40/5400+30:1800+30"]

1. e4 {[%emt 0:00:00]} d6 {[%emt 0:00:00]} 2. d4 {[%emt 0:00:00]} Nf6 {[%emt 0:00:00]} 3. Nc3 {[%emt 0:00:08]} c6 {[%emt 0:00:02]} 4. Bd3 {[%emt 0:00:48]} e5 {[%emt 0:02:23]} 5. dxe5 {[%emt 0:01:21]} dxe5 {[%emt 0:00:13]} 6. Nf3 {[%emt 0:00:39]} Qc7 {[%emt 0:01:11]} 7. h3 {[%emt 0:01:25]} Be7 {[%emt 0:01:11]} 8. O-O {[%emt 0:00:42]} O-O {[%emt 0:01:50]} 9. b3 {[%emt 0:01:17]} Nbd7 {[%emt 0:07:00]} 10. Bb2 {[%emt 0:00:33]} Re8 {[%emt 0:02:20]} 11. Qe2 {[%emt 0:02:24]} Nh5 {[%emt 0:03:46]} 12. Qd2 {[%emt 0:05:16]} Nf4 {[%emt 0:02:14]} 13. Ne2 {[%emt 0:00:45]} Ng6 {[%emt 0:02:56]} 14. Ng3 {[%emt 0:01:12]} Bf8 {[%emt 0:05:30]} 15. a4 {[%emt 0:02:13]} a5 {[%emt 0:00:45]} 16. Bc4 {[%emt 0:01:03]} Nb6 {[%emt 0:03:25]} 17. Qc3 {[%emt 0:01:28]} Bb4 {[%emt 0:01:16]} 18. Qe3 {[%emt 0:02:43]} Nxc4 {[%emt 0:01:33]} 19. bxc4 {[%emt 0:00:12]} b6 {[%emt 0:01:08]} 20. Ba3 {[%emt 0:04:28]} Be6 {[%emt 0:04:14]} 21. Bxb4 {[%emt 0:00:45]} axb4 {[%emt 0:00:02]} 22. c5 {[%emt 0:00:43]} bxc5 {[%emt 0:04:16]} 23. Qxc5 {[%emt 0:00:39]} Reb8 {[%emt 0:00:24]} 24. Rfb1 {[%emt 0:00:36]} Ra5 {[%emt 0:01:17]} 25. Qe3 {[%emt 0:00:18]} c5 {[%emt 0:00:15]} 26. Nd2 {[%emt 0:04:49]} c4 {[%emt 0:04:17]} 27. Nf5 {[%emt 0:03:13]} Bd7 {[%emt 0:06:21]} 28. Qe2 {[%emt 0:01:37]} c3 {[%emt 0:02:37]} 29. Qc4 {[%emt 0:00:47]} Rc5 {[%emt 0:03:20]} 30. Rxb4 {[%emt 0:02:46]} Rxc4 {[%emt 0:01:05]} 31. Rxc4 {[%emt 0:00:34]} Qd8 {[%emt 0:01:18]} 32. Nb3 {[%emt 0:00:56]} Bxf5 {[%emt 0:00:35]} 33. exf5 {[%emt 0:00:23]} Nf4 {[%emt 0:00:14]} 34. a5 {[%emt 0:01:08]} Qd5 {[%emt 0:01:39]} 35. Rxf4 {[%emt 0:00:40]} exf4 {[%emt 0:00:07]} 36. a6 {[%emt 0:00:27]} Ra8 {[%emt 0:00:13]} 37. Ra5 {[%emt 0:01:17]} Qd1+ {[%emt 0:00:32]} 38. Kh2 {[%emt 0:00:09]} Qxc2 {[%emt 0:00:22]} 39. Rb5 {[%emt 0:00:23]} Qxf2 {[%emt 0:00:21]} 40. Nc5 {[%emt 0:01:08]} f3 {[%emt 0:00:35]} 41. a7 {[%emt 0:32:42]} Qxg2# {[%emt 0:30:05]} 0-1